fUSD/lending_fUSD_20250702
["ID","MTS","AMOUNT","RATE_DAILY","PERIOD"]
[369034674,1751440253816,-490.0,0.00016596,2]
[369034675,1751440253826,-508.33126565,0.00016596,2]
[369034676,1751440253835,-530.05045181,0.00016596,2]
[369034677,1751440253845,-490.0,0.00016596,2]
[369034678,1751440253854,-606.96591246,0.00016596,2]
[369034679,1751440253865,-490.0,0.00016596,2]
[369034680,1751440253875,-491.28663384,0.00016596,2]
[369034681,1751440253885,-494.44789477,0.00016596,2]
[369034682,1751440253894,-337.69990225,0.00016596,2]
[369034683,1751440253903,-492.99975848,0.00016596,2]
[369034684,1751440253913,-490.0,0.00016596,2]
[369034685,1751440253922,-295.24879663,0.00016596,2]
[369034686,1751440254118,-490.0,0.00016596,2]
[369034687,1751440254129,-490.0,0.00016596,2]
[369034688,1751440254139,-490.0,0.00016596,2]
[369034689,1751440254148,-490.0,0.00016596,2]
[369034690,1751440254158,-492.29741158,0.00016596,2]
[369034691,1751440254168,-275.6158287,0.00016596,2]
[369034692,1751440254177,-336.31514939,0.00016596,2]
[369034693,1751440254187,-491.4481887,0.00016596,2]
[369034694,1751440254196,-490.0,0.00016596,2]
[369034695,1751440254206,-230.15360023,0.00016596,2]
[369034696,1751440254219,-490.0,0.00016596,2]
[369034697,1751440254229,-490.0,0.00016596,2]
[369034698,1751440254239,-490.0,0.00016596,2]
[369034699,1751440254249,-490.0,0.00016596,2]
[369034700,1751440254258,-490.0,0.00016596,2]
[369034701,1751440254268,-490.0,0.00016596,2]
[369034702,1751440254277,-490.0,0.00016596,2]
[369034703,1751440254287,-490.0,0.00016596,2]
[369034704,1751440254296,-490.85918161,0.00016596,2]
[369034705,1751440254306,-490.0,0.00016596,2]
[369034706,1751440254316,-490.0,0.00016596,2]
[369034707,1751440254327,-157.90079428,0.00016596,2]
[369034708,1751440254337,-491.55559235,0.00016596,2]
[369034709,1751440254346,-490.0,0.00016596,2]
[369034710,1751440254355,-490.0,0.00016596,2]
[369034711,1751440254366,-490.0,0.00016596,2]
[369034712,1751440254376,-490.0,0.00016596,2]
[369034713,1751440254387,-490.0,0.00016596,2]
[369034714,1751440254397,-490.0,0.00016596,2]
[369034715,1751440254407,-490.0,0.00016596,2]
[369034716,1751440254417,-490.0,0.00016596,2]
[369034717,1751440254429,-248.51134961,0.00016596,2]
[369034718,1751440254442,-349.0961637,0.00016596,2]
[369034719,1751440254452,-500.0,0.00016596,2]
[369034720,1751440254461,-490.0,0.00016596,2]
[369034721,1751440254470,-500.0,0.00016596,2]
[369034722,1751440254480,-500.0,0.00016596,2]
[369034723,1751440254489,-490.0,0.00016596,2]
[369034724,1751440254498,-490.0,0.00016596,2]
[369034725,1751440254507,-490.0,0.00016596,2]
[369034726,1751440254516,-490.0,0.00016596,2]
[369034727,1751440254526,-490.0,0.00016596,2]
[369034728,1751440254537,-427.89629238,0.00016596,2]
[369034729,1751440254551,-490.0,0.00016596,2]
[369034730,1751440254562,-490.0,0.00016596,2]
[369034731,1751440254572,-490.0,0.00016596,2]
[369034732,1751440254582,-490.76057524,0.00016596,2]
[369034733,1751440254591,-490.0,0.00016596,2]
[369034734,1751440254602,-437.07945334,0.00016596,2]
[369034735,1751440254612,-490.0,0.00016596,2]
[369034736,1751440254621,-490.76466587,0.00016596,2]
[369034737,1751440254631,-490.0,0.00016596,2]
[369034738,1751440254641,-490.0,0.00016596,2]
[369034739,1751440254650,-491.75712706,0.00016596,2]
[369034740,1751440254659,-490.0,0.00016596,2]
[369034741,1751440254669,-490.0,0.00016596,2]
[369034742,1751440254678,-490.0,0.00016596,2]
[369034743,1751440254687,-490.0,0.00016596,2]
[369034744,1751440254697,-490.53947296,0.00016596,2]
[369034745,1751440254706,-490.0,0.00016596,2]
[369034746,1751440254715,-490.49105043,0.00016596,2]
[369034747,1751440254725,-490.0,0.00016596,2]
[369034748,1751440254734,-490.0,0.00016596,2]
[369034749,1751440254744,-1659.19,0.00016596,2]
[369034750,1751440254754,-1497.28,0.00016596,2]
[369034751,1751440254764,-1004.4,0.00016596,2]
[369034752,1751440254774,-1729.04,0.00016596,2]
[369034753,1751440254783,-490.0,0.00016596,2]
[369034754,1751440254792,-490.0,0.00016596,2]
[369034755,1751440254802,-490.0,0.00016596,2]
[369034756,1751440254811,-491.70164086,0.00016596,2]
[369034757,1751440254821,-490.0,0.00016596,2]
[369034758,1751440254830,-1168.69,0.00016596,2]
[369034759,1751440254840,-490.0,0.00016596,2]
[369034760,1751440254850,-217.65320636,0.00016596,2]
[369034761,1751440254881,-272.34679364,0.00016596,2]
[369034762,1751440254890,-509.94,0.00016596,2]
[369034763,1751440254900,-700.9,0.00016596,2]
[369034764,1751440254910,-490.0,0.00016596,2]
[369034765,1751440254920,-490.0,0.00016596,2]
[369034766,1751440254929,-490.0,0.00016596,2]
[369034767,1751440254939,-490.0,0.00016596,2]
[369034768,1751440254949,-744.42,0.00016596,2]
[369034769,1751440254958,-490.0,0.00016596,2]
[369034770,1751440254967,-490.0,0.00016596,2]
[369034771,1751440254977,-490.0,0.00016596,2]
[369034772,1751440254987,-490.0,0.00016596,2]
[369034773,1751440254997,-490.0,0.00016596,2]
[369034774,1751440255006,-490.0,0.00016596,2]
[369034775,1751440255016,-490.0,0.00016596,2]
[369034776,1751440255025,-490.0,0.00016596,2]
[369034777,1751440255035,-610.51,0.00016596,2]
[369034778,1751440255044,-1064.63,0.00016596,2]
[369034779,1751440255054,-490.0,0.00016596,2]
[369034780,1751440255063,-490.0,0.00016596,2]
[369034781,1751440255072,-490.0,0.00016596,2]
[369034782,1751440255081,-490.0,0.00016596,2]
[369034783,1751440255091,-490.0,0.00016596,2]
[369034784,1751440255099,-490.0,0.00016596,2]
[369034785,1751440255108,-490.0,0.00016596,2]
[369034786,1751440255118,-665.68,0.00016596,2]
[369034787,1751440255127,-490.0,0.00016596,2]
[369034788,1751440255136,-500.0,0.00016596,2]
[369034789,1751440255145,-500.0,0.00016596,2]
[369034790,1751440255156,-793.85,0.00016596,2]
[369034791,1751440255165,-490.0,0.00016596,2]
[369034792,1751440255174,-1037.1,0.00016596,2]
[369034793,1751440255183,-501.37,0.00016596,2]
[369034794,1751440255192,-1101.32,0.00016596,2]
[369034795,1751440255202,-1654.99,0.00016596,2]
[369034796,1751440255211,-313.46636267,0.00016596,2]
[369034797,1751440255221,-646.07,0.00016596,2]
[369034798,1751440255230,-490.0,0.00016596,2]
[369034799,1751440255240,-490.0,0.00016596,2]
[369034800,1751440255250,-847.86,0.00016596,2]
[369034801,1751440255259,-490.0,0.00016596,2]
[369034802,1751440255269,-1811.32,0.00016596,2]
[369034803,1751440255278,-500.0,0.00016596,2]
[369034804,1751440255287,-1405.01,0.00016596,2]
[369034805,1751440255299,-500.0,0.00016596,2]
[369034806,1751440255309,-500.0,0.00016596,2]
[369034807,1751440255320,-500.0,0.00016596,2]
[369034808,1751440255329,-505.1,0.00016596,2]
[369034809,1751440255338,-500.0,0.00016596,2]
[369034810,1751440255347,-490.0,0.00016596,2]
[369034811,1751440255357,-4150.47,0.00016596,2]
[369034812,1751440255366,-536.41,0.00016596,2]
[369034813,1751440255375,-544.33,0.00016596,2]
[369034814,1751440255385,-1025.95,0.00016596,2]
[369034815,1751440255394,-2022.35,0.00016596,2]
[369034816,1751440255403,-490.0,0.00016596,2]
[369034817,1751440255413,-1042.63,0.00016596,2]
[369034818,1751440255422,-1463.23,0.00016596,2]
[369034819,1751440255431,-490.0,0.00016596,2]
[369034820,1751440255440,-1394.23,0.00016596,2]
[369034821,1751440255451,-3334.1,0.00016596,2]
[369034822,1751440255460,-1233.35,0.00016596,2]
[369034823,1751440255470,-500.0,0.00016596,2]
[369034824,1751440255479,-500.0,0.00016596,2]
[369034825,1751440255488,-500.0,0.00016596,2]
[369034826,1751440255498,-5092.75,0.00016596,2]
[369034827,1751440255507,-2447.14,0.00016596,2]
[369034828,1751440255516,-10653.79,0.00016596,2]
[369034829,1751440255525,-2303.77,0.00016596,2]
[369034830,1751440255535,-490.0,0.00016596,2]
[369034831,1751440255544,-1205.26,0.00016596,2]
[369034832,1751440255553,-490.0,0.00016596,2]
[369034833,1751440255564,-864.73,0.00016596,2]
[369034834,1751440255574,-603.72,0.00016596,2]
[369034835,1751440255583,-4892.04,0.00016596,2]
[369034836,1751440255592,-1162.87,0.00016596,2]
[369034837,1751440255602,-598.04,0.00016596,2]
[369034838,1751440255611,-6258.12,0.00016596,2]
[369034839,1751440255620,-500.0,0.00016596,2]
[369034840,1751440255630,-1831.83,0.00016596,2]
[369034841,1751440255642,-64779.44,0.00016596,2]
[369034842,1751440255651,-812.05,0.00016596,2]
[369034843,1751440255660,-7045.92,0.00016596,2]
[369034844,1751440255669,-490.0,0.00016596,2]
[369034845,1751440255679,-2831.73,0.00016596,2]
[369034846,1751440255688,-647.84,0.00016597,2]
[369034847,1751440255697,-490.0,0.00016597,2]
[369034848,1751440255706,-490.0,0.00016597,2]
[369034849,1751440255716,-490.0,0.00016597,2]
[369034850,1751440255725,-490.0,0.00016597,2]
[369034851,1751440255734,-500.33281355,0.00016597,2]
[369034852,1751440255743,-493.67,0.00016597,2]
[369034853,1751440255753,-490.0,0.00016597,2]
[369034854,1751440255762,-491.58563857,0.00016597,2]
[369034855,1751440255771,-583.12,0.00016597,2]
[369034856,1751440255780,-490.0,0.00016597,2]
[369034857,1751440255790,-490.0,0.00016597,2]
[369034858,1751440255799,-200.0,0.00016597,2]
[369034859,1751440255808,-360.0,0.00016597,2]
[369034860,1751440255818,-490.0,0.00016597,2]
[369034861,1751440255827,-900.27,0.00016597,2]
[369034862,1751440255836,-490.0,0.00016597,2]
[369034863,1751440255846,-490.0,0.00016597,2]
[369034864,1751440255855,-490.0,0.00016597,2]
[369034865,1751440255864,-490.0,0.00016597,2]
[369034866,1751440255874,-490.0,0.00016597,2]
[369034867,1751440255883,-490.0,0.00016597,2]
[369034868,1751440255892,-490.0,0.00016597,2]
[369034869,1751440255902,-490.0,0.00016597,2]
[369034870,1751440255911,-490.0,0.00016597,2]
[369034871,1751440255920,-490.0,0.00016597,2]
[369034872,1751440255930,-490.0,0.00016597,2]
[369034873,1751440255939,-490.0,0.00016597,2]
[369034874,1751440255948,-490.0,0.00016597,2]
[369034875,1751440255958,-490.0,0.00016597,2]
[369034876,1751440255967,-490.0,0.00016597,2]
[369034877,1751440255976,-490.0,0.00016597,2]
[369034878,1751440255985,-491.33,0.00016597,2]
[369034879,1751440255995,-490.0,0.00016597,2]
[369034880,1751440256005,-491.05081755,0.00016597,2]
[369034881,1751440256014,-490.0,0.00016597,2]
[369034882,1751440256024,-497.55745513,0.00016597,2]
[369034883,1751440256034,-490.0,0.00016597,2]
[369034884,1751440256043,-490.0,0.00016597,2]
[369034885,1751440256053,-490.0,0.00016597,2]
[369034886,1751440256062,-491.06325634,0.00016597,2]
[369034887,1751440256071,-490.0,0.00016597,2]
[369034888,1751440256082,-490.0,0.00016597,2]
[369034889,1751440256091,-490.0,0.00016597,2]
[369034890,1751440256100,-490.0,0.00016597,2]
[369034891,1751440256109,-490.0,0.00016597,2]
[369034892,1751440256118,-490.0,0.00016597,2]
[369034893,1751440256128,-490.0,0.00016597,2]
[369034894,1751440256138,-490.0,0.00016597,2]
[369034895,1751440256147,-490.0,0.00016597,2]
[369034896,1751440256157,-490.0,0.00016597,2]
[369034897,1751440256166,-490.0,0.00016597,2]
[369034898,1751440256175,-490.0,0.00016597,2]
[369034899,1751440256185,-490.0,0.00016597,2]
[369034900,1751440256195,-490.0,0.00016597,2]
[369034901,1751440256204,-490.0,0.00016597,2]
[369034902,1751440256214,-490.0,0.00016597,2]
[369034903,1751440256223,-490.0,0.00016597,2]
[369034904,1751440256379,-490.0,0.00016597,2]
[369034905,1751440256389,-490.0,0.00016597,2]
[369034906,1751440256403,-490.0,0.00016597,2]
[369034907,1751440256412,-500.0,0.00016597,2]
[369034908,1751440256421,-490.0,0.00016597,2]
[369034909,1751440256431,-490.0,0.00016597,2]
[369034910,1751440256440,-490.0,0.00016597,2]
[369034911,1751440256449,-1134.27,0.00016597,2]
[369034912,1751440256459,-490.0,0.00016597,2]
[369034913,1751440256468,-490.0,0.00016597,2]
[369034914,1751440256477,-490.0,0.00016597,2]
[369034915,1751440256487,-490.0,0.00016597,2]
[369034916,1751440256496,-490.0,0.00016597,2]
[369034917,1751440256505,-490.0,0.00016597,2]
[369034918,1751440256514,-490.0,0.00016597,2]
[369034919,1751440256524,-500.0,0.00016597,2]
[369034920,1751440256534,-500.0,0.00016597,2]
[369034921,1751440256543,-490.0,0.00016597,2]
[369034922,1751440256560,-490.0,0.00016597,2]
[369034923,1751440256572,-490.0,0.00016597,2]
[369034924,1751440256582,-490.0,0.00016597,2]
[369034925,1751440256591,-200.0,0.00016597,2]
[369034926,1751440256601,-490.0,0.00016597,2]
[369034927,1751440256610,-151.6454475,0.00016597,2]
[369034928,1751440256619,-173.16280359,0.00016597,2]
[369034929,1751440256629,-410.49920279,0.00016597,2]
[369034930,1751440256640,-3431.79943,0.00016597,2]
[369034931,1751440256650,-490.0,0.00016598,2]
[369034932,1751440256659,-500.0,0.00016598,2]
[369034933,1751440256668,-151.0,0.00016599,2]
[369034934,1751440256677,-151.0,0.00016599,2]
[369034935,1751440256686,-1527.0067799,0.000166,2]
[369034936,1751440256697,-1218.90304549,0.00016607,2]
[369034937,1751440256706,-250.0,0.00016609,2]
[369034938,1751440256715,-1743.73596203,0.00016611,2]
[369034939,1751440256725,-490.0,0.0001663,2]
[369034940,1751440256734,-490.0,0.0001663,2]
[369034941,1751440256744,-490.0,0.0001663,2]
[369034942,1751440256753,-490.0,0.0001663,2]
[369034943,1751440256762,-490.0,0.0001663,2]
[369034944,1751440256772,-490.0,0.0001663,2]
[369034945,1751440256782,-490.0,0.0001663,2]
[369034946,1751440256791,-490.0,0.0001663,2]
[369034947,1751440256801,-490.0,0.0001663,2]
[369034948,1751440256810,-490.0,0.0001663,2]
[369034949,1751440256819,-490.0,0.0001663,2]
[369034950,1751440256828,-490.0,0.0001663,2]
[369034951,1751440256838,-490.0,0.0001663,2]
[369034952,1751440256847,-490.0,0.0001663,2]
[369034953,1751440256856,-490.0,0.0001663,2]
[369034954,1751440256865,-490.0,0.0001663,2]
[369034955,1751440256875,-490.0,0.0001663,2]
[369034956,1751440256884,-490.0,0.0001663,2]
[369034957,1751440256894,-490.0,0.0001663,2]
[369034958,1751440256904,-490.0,0.0001663,2]
[369034959,1751440256914,-490.0,0.0001663,2]
[369034960,1751440256923,-490.0,0.0001663,2]
[369034961,1751440256932,-252.0,0.00016648,2]
[369034962,1751440256942,-500.0,0.00016658,2]
[369034963,1751440256952,-1181.0,0.000167,2]
[369034964,1751440256961,-31390.68,0.000167,2]
[369034965,1751440256971,-1181.0,0.00016707,2]
[369034966,1751440256982,-1181.0,0.00016709,2]
[369034967,1751440256992,-224.99,0.00016712,2]
[369034968,1751440257001,-537.1479,0.00016731,2]
[369034969,1751440257011,-5024.52985644,0.00016732,2]
[369034970,1751440257021,-1743.73596203,0.00016734,2]
[369034971,1751440257031,-210.00919384,0.00016751,2]
[369034972,1751440257041,-301.98584018,0.00016768,2]
[369034973,1751440257051,-303.10703684,0.0001677,2]
[369034974,1751440257060,-210.00919384,0.00016781,2]
[369034975,1751440257070,-711.6,0.000168,2]
[369034976,1751440257079,-912.94,0.000168,2]
[369034977,1751440257089,-210.00919384,0.0001681,2]
[369034978,1751440257098,-500.0,0.0001683,2]
[369034979,1751440257108,-210.00919384,0.00016839,2]
[369034980,1751440257117,-3431.79943,0.0001685,2]
[369034981,1751440257126,-1743.73596203,0.00016856,2]
[369034982,1751440257135,-252.0,0.00016857,2]
[369034983,1751440257145,-490.0,0.00016862,2]
[369034984,1751440257154,-490.0,0.00016862,2]
[369034985,1751440257164,-2825.46,0.00016862,2]
[369034986,1751440257174,-490.0,0.00016862,2]
[369034987,1751440257184,-490.0,0.00016862,2]
[369034988,1751440257193,-490.0,0.00016862,2]
[369034989,1751440257203,-563.11,0.00016862,2]
[369034990,1751440257213,-490.0,0.00016862,2]
[369034991,1751440257223,-490.0,0.00016862,2]
[369034992,1751440257232,-490.0,0.00016862,2]
[369034993,1751440257242,-490.0,0.00016862,2]
[369034994,1751440257251,-490.0,0.00016862,2]
[369034995,1751440257260,-1365.08,0.00016862,2]
[369034996,1751440257270,-1151.62,0.00016862,2]
[369034997,1751440257279,-490.0,0.00016862,2]
[369034998,1751440257288,-509.42,0.00016862,2]
[369034999,1751440257298,-163.83,0.00016862,2]
[369035000,1751440257307,-1034.51,0.00016862,2]
[369035001,1751440257316,-2886.05,0.00016862,2]
[369035002,1751440257325,-490.0,0.00016862,2]
[369035003,1751440257335,-1275.82,0.00016862,2]
[369035004,1751440257344,-899.03,0.00016862,2]
[369035005,1751440257354,-1484.97,0.00016862,2]
[369035006,1751440257368,-490.0,0.00016862,2]
[369035007,1751440257388,-1062.03,0.00016862,2]
[369035008,1751440257406,-662.5,0.00016862,2]
[369035009,1751440257425,-490.0,0.00016862,2]
[369035010,1751440257442,-1078.04,0.00016862,2]
[369035011,1751440257460,-926.54,0.00016862,2]
[369035012,1751440257479,-490.0,0.00016862,2]
[369035013,1751440257498,-490.0,0.00016862,2]
[369035014,1751440257518,-2991.94,0.00016862,2]
[369035015,1751440257535,-932.34,0.00016862,2]
[369035016,1751440257555,-745.18,0.00016862,2]
[369035017,1751440257577,-490.0,0.00016862,2]
[369035018,1751440257590,-903.95,0.00016862,2]
[369035019,1751440257609,-490.0,0.00016862,2]
[369035020,1751440257623,-1266.27,0.00016862,2]
[369035021,1751440257644,-3120.29,0.00016862,2]
[369035022,1751440257657,-770.026631,0.00016862,2]
[369035023,1751440257672,-4716.77,0.00016862,2]
[369035024,1751440257687,-849.850994,0.00016862,2]
[369035025,1751440257703,-490.0,0.00016862,2]
[369035026,1751440257723,-898.928694,0.00016862,2]
[369035027,1751440257737,-490.0,0.00016862,2]
[369035028,1751440257751,-877.06,0.00016862,2]
[369035029,1751440257766,-1355.55,0.00016862,2]
[369035030,1751440257781,-490.0,0.00016862,2]
[369035031,1751440257796,-313.8078117,0.00016862,2]
[369035032,1751440257810,-500.0,0.00016863,2]
[369035033,1751440257825,-150.0,0.00016863,2]
[369035034,1751440257840,-150.0,0.00016863,2]
[369035035,1751440257855,-500.0,0.00016863,2]
[369035036,1751440257869,-150.0,0.00016863,2]
[369035037,1751440257884,-500.0,0.00016863,2]
[369035038,1751440257899,-553.15614851,0.00016863,2]
[369035039,1751440257915,-500.0,0.00016863,2]
[369035040,1751440257932,-804.0,0.00016863,2]
[369035041,1751440257947,-150.0,0.00016863,2]
[369035042,1751440257963,-203.66527241,0.00016863,2]
[369035043,1751440257979,-150.0,0.00016863,2]
[369035044,1751440257994,-150.0,0.00016863,2]
[369035045,1751440258009,-150.0,0.00016863,2]
[369035046,1751440258023,-500.0,0.00016863,2]
[369035047,1751440258039,-1558.0,0.00016863,2]
[369035048,1751440258054,-746.0,0.00016863,2]
[369035049,1751440258070,-490.0,0.00016863,2]
[369035050,1751440258085,-490.0,0.00016863,2]
[369035051,1751440258100,-490.0,0.00016863,2]
[369035052,1751440258114,-490.0,0.00016863,2]
[369035053,1751440258129,-490.0,0.00016863,2]
[369035054,1751440258144,-490.0,0.00016863,2]
[369035055,1751440258159,-490.0,0.00016863,2]
[369035056,1751440258173,-472.75132748,0.00016863,2]
[369035057,1751440258188,-493.27334731,0.00016863,2]
[369035058,1751440258204,-490.0,0.00016863,2]
[369035059,1751440258219,-490.0,0.00016863,2]
[369035060,1751440258234,-490.0,0.00016863,2]
[369035061,1751440258249,-490.0,0.00016863,2]
[369035062,1751440258264,-490.0,0.00016863,2]
[369035063,1751440258279,-490.0,0.00016863,2]
[369035064,1751440258295,-490.0,0.00016863,2]
[369035065,1751440258311,-490.0,0.00016863,2]
[369035066,1751440258326,-490.0,0.00016863,2]
[369035067,1751440258341,-212.3642102,0.00016863,2]
[369035068,1751440258357,-490.0,0.00016863,2]
[369035069,1751440258371,-490.0,0.00016863,2]
[369035070,1751440258387,-1682.49,0.00016863,2]
[369035071,1751440258401,-490.0,0.00016863,2]
[369035072,1751440258417,-2161.49,0.00016863,2]
[369035073,1751440258432,-799.38,0.00016863,2]
[369035074,1751440258447,-490.0,0.00016863,2]
[369035075,1751440258464,-1718.57,0.00016863,2]
[369035076,1751440258478,-490.0,0.00016863,2]
[369035077,1751440258494,-490.0,0.00016863,2]
[369035078,1751440258510,-386.35140165,0.00016863,2]
[369035079,1751440258525,-924.64,0.00016863,2]
[369035080,1751440258540,-797.25,0.00016863,2]
[369035081,1751440258557,-490.0,0.00016863,2]
[369035082,1751440258577,-1328.99,0.00016863,2]
[369035083,1751440258593,-490.0,0.00016863,2]
[369035084,1751440258609,-490.0,0.00016863,2]
[369035085,1751440258625,-490.0,0.00016863,2]
[369035086,1751440258641,-621.78,0.00016863,2]
[369035087,1751440258656,-588.93,0.00016863,2]
[369035088,1751440258672,-490.0,0.00016863,2]
[369035089,1751440258688,-1564.61,0.00016863,2]
[369035090,1751440258703,-2145.29,0.00016863,2]
[369035091,1751440258718,-763.8,0.00016863,2]
[369035092,1751440258733,-735.41,0.00016863,2]
[369035093,1751440258754,-490.0,0.00016863,2]
[369035094,1751440258770,-550.66,0.00016863,2]
[369035095,1751440258787,-490.0,0.00016863,2]
[369035096,1751440258797,-1098.62,0.00016863,2]
[369035097,1751440258806,-490.0,0.00016863,2]
[369035098,1751440258816,-663.53,0.00016863,2]
[369035099,1751440258827,-490.0,0.00016863,2]
[369035100,1751440258836,-1151.64,0.00016863,2]
[369035101,1751440258847,-1018.13,0.00016863,2]
[369035102,1751440258857,-1072.88,0.00016863,2]
[369035103,1751440258867,-490.0,0.00016863,2]
[369035104,1751440258878,-692.46,0.00016863,2]
[369035105,1751440258888,-1536.87,0.00016863,2]
[369035106,1751440258898,-490.0,0.00016863,2]
[369035107,1751440259190,-1076.66,0.00016863,2]
[369035108,1751440259204,-490.0,0.00016863,2]
[369035109,1751440259213,-490.0,0.00016863,2]
[369035110,1751440259222,-490.0,0.00016863,2]
[369035111,1751440259231,-1582.63,0.00016863,2]
[369035112,1751440259242,-575.26,0.00016863,2]
[369035113,1751440259251,-902.99,0.00016863,2]
[369035114,1751440259260,-1967.66,0.00016863,2]
[369035115,1751440259270,-1584.69,0.00016863,2]
[369035116,1751440259279,-1221.95,0.00016863,2]
[369035117,1751440259288,-956.69,0.00016863,2]
[369035118,1751440259297,-3146.71,0.00016863,2]
[369035119,1751440259306,-490.0,0.00016863,2]
[369035120,1751440259315,-6442.13,0.00016863,2]
[369035121,1751440259324,-490.0,0.00016863,2]
[369035122,1751440259334,-1181.88,0.00016863,2]
[369035123,1751440259343,-490.0,0.00016863,2]
[369035124,1751440259352,-871.15,0.00016863,2]
[369035125,1751440259361,-490.0,0.00016863,2]
[369035126,1751440259371,-1481.82,0.00016863,2]
[369035127,1751440259380,-1209.11,0.00016863,2]
[369035128,1751440259390,-490.0,0.00016863,2]
[369035129,1751440259399,-1330.67,0.00016863,2]
[369035130,1751440259408,-996.31,0.00016863,2]
[369035131,1751440259418,-1299.24,0.00016863,2]
[369035132,1751440259427,-1263.9,0.00016863,2]
[369035133,1751440259436,-6093.33,0.00016863,2]
[369035134,1751440259445,-490.0,0.00016863,2]
[369035135,1751440259455,-490.0,0.00016863,2]
[369035136,1751440259465,-961.47,0.00016863,2]
[369035137,1751440259475,-8276.87,0.00016863,2]
[369035138,1751440259486,-646.76,0.00016863,2]
[369035139,1751440259495,-1292.83,0.00016863,2]
[369035140,1751440259504,-734.56,0.00016863,2]
[369035141,1751440259513,-758.58,0.00016863,2]
[369035142,1751440259522,-490.0,0.00016863,2]
[369035143,1751440259532,-1883.79,0.00016863,2]
[369035144,1751440259542,-490.0,0.00016863,2]
[369035145,1751440259553,-1991.43,0.00016863,2]
[369035146,1751440259564,-1034.97,0.00016863,2]
[369035147,1751440259574,-490.0,0.00016863,2]
[369035148,1751440259583,-1179.67,0.00016863,2]
[369035149,1751440259592,-1855.15,0.00016863,2]
[369035150,1751440259602,-1196.98,0.00016863,2]
[369035151,1751440259612,-490.0,0.00016863,2]
[369035152,1751440259622,-2325.84,0.00016863,2]
[369035153,1751440259632,-510.74,0.00016863,2]
[369035154,1751440259643,-565.39,0.00016863,2]
[369035155,1751440259654,-14641.57,0.00016863,2]
[369035156,1751440259663,-1425.22,0.00016863,2]
[369035157,1751440259674,-490.0,0.00016863,2]
[369035158,1751440259684,-1103.13,0.00016863,2]
[369035159,1751440259694,-782.62,0.00016863,2]
[369035160,1751440259704,-1566.85,0.00016863,2]
[369035161,1751440259713,-490.0,0.00016863,2]
[369035162,1751440259723,-1254.73,0.00016863,2]
[369035163,1751440259732,-543.33,0.00016863,2]
[369035164,1751440259742,-744.57,0.00016863,2]
[369035165,1751440259751,-490.0,0.00016863,2]
[369035166,1751440259760,-490.0,0.00016863,2]
[369035167,1751440259770,-2275.24,0.00016863,2]
[369035168,1751440259779,-1224.2,0.00016863,2]
[369035169,1751440259789,-490.0,0.00016863,2]
[369035170,1751440259799,-2256.38,0.00016863,2]
[369035171,1751440259808,-970.44,0.00016863,2]
[369035172,1751440259818,-7003.9,0.00016863,2]
[369035173,1751440259828,-693.51,0.00016863,2]